fUSD/lending_fUSD_20240614
["ID","MTS","AMOUNT","RATE_DAILY","PERIOD"]
[329421855,1718329852982,-500.0,0.00024383,2]
[329421856,1718329852996,-500.0,0.00024383,2]
[329421857,1718329853017,-500.0,0.00024383,2]
[329421858,1718329853034,-500.0,0.00024383,2]
[329421859,1718329853066,-500.0,0.00024383,2]
[329421860,1718329853094,-500.0,0.00024383,2]
[329421861,1718329853112,-500.0,0.00024383,2]
[329421862,1718329853140,-500.0,0.00024383,2]
[329421863,1718329853184,-500.0,0.00024383,2]
[329421864,1718329853230,-500.0,0.00024383,2]
[329421865,1718329853252,-500.0,0.00024383,2]
[329421866,1718329853285,-500.0,0.00024383,2]
[329421867,1718329853304,-500.0,0.00024383,2]
[329421868,1718329853320,-500.0,0.00024383,2]
[329421869,1718329853350,-500.0,0.00024383,2]
[329421870,1718329853362,-500.0,0.00024383,2]
[329421871,1718329853375,-500.0,0.00024383,2]
[329421872,1718329853393,-500.0,0.00024383,2]
[329421873,1718329853407,-500.0,0.00024383,2]
[329421874,1718329853420,-500.0,0.00024383,2]
[329421875,1718329853443,-500.0,0.00024383,2]
[329421876,1718329853467,-500.0,0.00024383,2]
[329421877,1718329853478,-500.0,0.00024383,2]
[329421878,1718329853489,-500.0,0.00024383,2]
[329421879,1718329853503,-500.0,0.00024383,2]
[329421880,1718329853549,-500.0,0.00024383,2]
[329421881,1718329853562,-500.0,0.00024383,2]
[329421882,1718329853584,-500.0,0.00024383,2]
[329421883,1718329853622,-500.0,0.00024383,2]
[329421884,1718329853633,-500.0,0.00024383,2]
[329421885,1718329853654,-500.0,0.00024383,2]
[329421886,1718329853666,-278.26610686,0.00024383,2]
[329421887,1718329853677,-500.0,0.00024383,2]
[329421888,1718329853690,-500.0,0.00024383,2]
[329421889,1718329853702,-500.0,0.00024383,2]
[329421890,1718329853723,-396.36255214,0.00024383,2]
[329421891,1718329853733,-500.0,0.00024383,2]
[329421892,1718329853745,-500.0,0.00024383,2]
[329421893,1718329853756,-500.0,0.00024383,2]
[329421894,1718329853768,-500.0,0.00024383,2]
[329421895,1718329853780,-500.0,0.00024383,2]
[329421896,1718329853792,-500.0,0.00024383,2]
[329421897,1718329853802,-500.0,0.00024383,2]
[329421898,1718329853813,-500.0,0.00024383,2]
[329421899,1718329853826,-500.0,0.00024383,2]
[329421900,1718329853837,-178.55577432,0.00024383,2]
[329421901,1718329853848,-500.0,0.00024383,2]
[329421902,1718329853872,-500.0,0.00024383,2]
[329421903,1718329853882,-500.0,0.00024383,2]
[329421904,1718329853904,-500.0,0.00024383,2]
[329421905,1718329853932,-500.0,0.00024383,2]
[329421906,1718329853951,-500.0,0.00024383,2]
[329421907,1718329853965,-500.0,0.00024383,2]
[329421908,1718329853976,-500.0,0.00024383,2]
[329421909,1718329853991,-500.0,0.00024383,2]
[329421910,1718329854005,-500.0,0.00024383,2]
[329421911,1718329854018,-500.0,0.00024383,2]
[329421912,1718329854029,-500.0,0.00024383,2]
[329421913,1718329854133,-157.25971137,0.00024383,2]
[329421914,1718329854148,-500.0,0.00024383,2]
[329421915,1718329854164,-500.0,0.00024383,2]
[329421916,1718329854215,-500.0,0.00024383,2]
[329421917,1718329854235,-500.0,0.00024383,2]
[329421918,1718329854284,-548.42,0.00024383,2]
[329421919,1718329854324,-444.03379761,0.00024383,2]
[329421920,1718329854357,-591.54,0.00024383,2]
[329421921,1718329854387,-500.0,0.00024383,2]
[329421922,1718329854420,-992.45,0.00024383,2]
[329421923,1718329854443,-500.0,0.00024383,2]
[329421924,1718329854459,-500.0,0.00024383,2]
[329421925,1718329854476,-500.0,0.00024383,2]
[329421926,1718329854500,-500.0,0.00024383,2]
[329421927,1718329854515,-500.0,0.00024383,2]
[329421928,1718329854528,-500.0,0.00024383,2]
[329421929,1718329854546,-500.0,0.00024383,2]
[329421930,1718329854557,-771.5,0.00024383,2]
[329421931,1718329854567,-641.72,0.00024383,2]
[329421932,1718329854583,-500.0,0.00024383,2]
[329421933,1718329854602,-500.0,0.00024383,2]
[329421934,1718329854613,-500.0,0.00024383,2]
[329421935,1718329854625,-500.0,0.00024383,2]
[329421936,1718329854636,-500.0,0.00024383,2]
[329421937,1718329854646,-500.0,0.00024383,2]
[329421938,1718329854704,-500.0,0.00024383,2]
[329421939,1718329854717,-500.0,0.00024383,2]
[329421940,1718329854750,-500.0,0.00024383,2]
[329421941,1718329854763,-500.0,0.00024383,2]
[329421942,1718329854806,-500.0,0.00024383,2]
[329421943,1718329854831,-500.0,0.00024383,2]
[329421944,1718329854864,-500.0,0.00024383,2]
[329421945,1718329854892,-500.0,0.00024383,2]
[329421946,1718329854910,-500.0,0.00024383,2]
[329421947,1718329854924,-500.0,0.00024383,2]
[329421948,1718329854936,-500.0,0.00024383,2]
[329421949,1718329854948,-500.0,0.00024383,2]
[329421950,1718329854961,-500.0,0.00024383,2]
[329421951,1718329855020,-500.0,0.00024383,2]
[329421952,1718329855048,-500.0,0.00024383,2]
[329421953,1718329855064,-500.0,0.00024383,2]
[329421954,1718329855109,-500.0,0.00024383,2]
[329421955,1718329855127,-612.48,0.00024383,2]
[329421956,1718329855141,-500.0,0.00024383,2]
[329421957,1718329855154,-500.0,0.00024383,2]
[329421958,1718329855166,-500.0,0.00024383,2]
[329421959,1718329855178,-500.0,0.00024383,2]
[329421960,1718329855190,-500.0,0.00024383,2]
[329421961,1718329855205,-598.86,0.00024383,2]
[329421962,1718329855221,-1020.91,0.00024383,2]
[329421963,1718329855242,-500.0,0.00024383,2]
[329421964,1718329855258,-500.0,0.00024383,2]
[329421965,1718329855277,-500.0,0.00024383,2]
[329421966,1718329855300,-500.0,0.00024383,2]
[329421967,1718329855322,-500.0,0.00024383,2]
[329421968,1718329855335,-500.0,0.00024383,2]
[329421969,1718329855378,-500.0,0.00024383,2]
[329421970,1718329855392,-500.0,0.00024383,2]
[329421971,1718329855408,-621.24,0.00024383,2]
[329421972,1718329855425,-500.0,0.00024383,2]
[329421973,1718329855442,-802.16,0.00024383,2]
[329421974,1718329855464,-500.0,0.00024383,2]
[329421975,1718329855477,-1025.39,0.00024383,2]
[329421976,1718329855500,-749.07,0.00024383,2]
[329421977,1718329855517,-500.0,0.00024383,2]
[329421978,1718329855574,-500.0,0.00024383,2]
[329421979,1718329855592,-500.0,0.00024383,2]
[329421980,1718329855604,-500.0,0.00024383,2]
[329421981,1718329855618,-500.0,0.00024383,2]
[329421982,1718329855629,-625.95,0.00024383,2]
[329421983,1718329855643,-500.0,0.00024383,2]
[329421984,1718329855663,-695.14,0.00024383,2]
[329421985,1718329855676,-500.0,0.00024383,2]
[329421986,1718329855727,-594.63,0.00024383,2]
[329421987,1718329855740,-500.0,0.00024383,2]
[329421988,1718329855756,-500.0,0.00024383,2]
[329421989,1718329855770,-500.0,0.00024383,2]
[329421990,1718329855781,-510.89,0.00024383,2]
[329421991,1718329855802,-810.56,0.00024383,2]
[329421992,1718329855817,-500.0,0.00024383,2]
[329421993,1718329855840,-620.16,0.00024383,2]
[329421994,1718329855874,-644.0,0.00024383,2]
[329421995,1718329855889,-500.0,0.00024383,2]
[329421996,1718329855906,-500.0,0.00024383,2]
[329421997,1718329855940,-500.0,0.00024383,2]
[329421998,1718329855992,-500.0,0.00024383,2]
[329421999,1718329856011,-500.0,0.00024383,2]
[329422000,1718329856022,-500.0,0.00024383,2]
[329422001,1718329856033,-500.0,0.00024383,2]
[329422002,1718329856045,-500.0,0.00024383,2]
[329422003,1718329856058,-500.0,0.00024383,2]
[329422004,1718329856071,-500.0,0.00024383,2]
[329422005,1718329856102,-500.0,0.00024383,2]
[329422006,1718329856164,-500.0,0.00024383,2]
[329422007,1718329856177,-500.0,0.00024383,2]
[329422008,1718329856189,-637.11,0.00024383,2]
[329422009,1718329856215,-500.0,0.00024383,2]
[329422010,1718329856236,-500.0,0.00024383,2]
[329422011,1718329856261,-500.0,0.00024383,2]
[329422012,1718329856277,-500.0,0.00024383,2]
[329422013,1718329856290,-500.0,0.00024383,2]
[329422014,1718329856304,-500.0,0.00024383,2]
[329422015,1718329856322,-500.0,0.00024383,2]
[329422016,1718329856348,-500.0,0.00024383,2]
[329422017,1718329856381,-500.0,0.00024383,2]
[329422018,1718329856409,-500.0,0.00024383,2]
[329422019,1718329856428,-500.0,0.00024383,2]
[329422020,1718329856446,-731.43,0.00024383,2]
[329422021,1718329856465,-500.0,0.00024383,2]
[329422022,1718329856487,-500.0,0.00024383,2]
[329422023,1718329856497,-500.0,0.00024383,2]
[329422024,1718329856512,-500.0,0.00024383,2]
[329422025,1718329856524,-533.52,0.00024383,2]
[329422026,1718329856541,-500.0,0.00024383,2]
[329422027,1718329856563,-500.0,0.00024383,2]
[329422028,1718329856588,-500.0,0.00024383,2]
[329422029,1718329856614,-500.0,0.00024383,2]
[329422030,1718329856634,-500.0,0.00024383,2]
[329422031,1718329856651,-500.0,0.00024383,2]
[329422032,1718329856680,-500.0,0.00024383,2]
[329422033,1718329856878,-500.0,0.00024383,2]
[329422034,1718329856892,-599.58,0.00024383,2]
[329422035,1718329856903,-500.0,0.00024383,2]
[329422036,1718329856914,-500.0,0.00024383,2]
[329422037,1718329856925,-500.0,0.00024383,2]
[329422038,1718329856935,-500.0,0.00024383,2]
[329422039,1718329856946,-500.0,0.00024383,2]
[329422040,1718329856956,-326.59314,0.00024383,2]
[329422041,1718329856966,-500.0,0.00024383,2]
[329422042,1718329856977,-904.8,0.00024383,2]
[329422043,1718329856987,-500.0,0.00024383,2]
[329422044,1718329856998,-500.0,0.00024383,2]
[329422045,1718329857008,-780.74,0.00024383,2]
[329422046,1718329857024,-500.0,0.00024383,2]
[329422047,1718329857042,-500.0,0.00024383,2]
[329422048,1718329857055,-500.0,0.00024383,2]
[329422049,1718329857066,-500.0,0.00024383,2]
[329422050,1718329857099,-500.0,0.00024383,2]
[329422051,1718329857110,-600.99663844,0.00024383,2]
[329422052,1718329857123,-500.0,0.00024383,2]
[329422053,1718329857162,-615.82,0.00024383,2]
[329422054,1718329857184,-500.0,0.00024383,2]
[329422055,1718329857195,-500.0,0.00024383,2]
[329422056,1718329857209,-500.0,0.00024383,2]
[329422057,1718329857220,-501.56,0.00024383,2]
[329422058,1718329857232,-185.3,0.00024383,2]
[329422059,1718329857249,-734.92,0.00024383,2]
[329422060,1718329857260,-500.0,0.00024383,2]
[329422061,1718329857282,-500.0,0.00024383,2]
[329422062,1718329857315,-500.0,0.00024383,2]
[329422063,1718329857328,-500.0,0.00024383,2]
[329422064,1718329857338,-500.0,0.00024383,2]
[329422065,1718329857349,-500.0,0.00024383,2]
[329422066,1718329857365,-500.0,0.00024383,2]
[329422067,1718329857377,-500.0,0.00024383,2]
[329422068,1718329857389,-500.0,0.00024383,2]
[329422069,1718329857416,-500.0,0.00024383,2]
[329422070,1718329857429,-500.0,0.00024383,2]
[329422071,1718329857447,-500.0,0.00024383,2]
[329422072,1718329857461,-538.29,0.00024383,2]
[329422073,1718329857471,-500.0,0.00024383,2]
[329422074,1718329857482,-500.0,0.00024383,2]
[329422075,1718329857493,-500.0,0.00024383,2]
[329422076,1718329857504,-500.0,0.00024383,2]
[329422077,1718329857516,-500.0,0.00024383,2]
[329422078,1718329857528,-500.0,0.00024383,2]
[329422079,1718329857550,-720.9,0.00024383,2]
[329422080,1718329857561,-600.99805878,0.00024383,2]
[329422081,1718329857573,-739.59,0.00024383,2]
[329422082,1718329857586,-500.0,0.00024383,2]
[329422083,1718329857598,-500.0,0.00024383,2]
[329422084,1718329857613,-500.0,0.00024383,2]
[329422085,1718329857624,-500.0,0.00024383,2]
[329422086,1718329857634,-500.0,0.00024383,2]
[329422087,1718329857645,-500.0,0.00024383,2]
[329422088,1718329857662,-500.0,0.00024383,2]
[329422089,1718329857683,-500.0,0.00024383,2]
[329422090,1718329857699,-500.0,0.00024383,2]
[329422091,1718329857710,-500.0,0.00024383,2]
[329422092,1718329857720,-500.0,0.00024383,2]
[329422093,1718329857733,-500.0,0.00024383,2]
[329422094,1718329857744,-2312.84,0.00024383,2]
[329422095,1718329857756,-500.0,0.00024383,2]
[329422096,1718329857768,-746.33,0.00024383,2]
[329422097,1718329857798,-645.3,0.00024383,2]
[329422098,1718329857816,-500.0,0.00024383,2]
[329422099,1718329857828,-500.0,0.00024383,2]
[329422100,1718329857864,-500.0,0.00024383,2]
[329422101,1718329857875,-500.0,0.00024383,2]
[329422102,1718329857894,-500.0,0.00024383,2]
[329422103,1718329857937,-500.0,0.00024383,2]
[329422104,1718329857961,-2546.31,0.00024383,2]
[329422105,1718329857973,-500.0,0.00024383,2]
[329422106,1718329857994,-500.0,0.00024383,2]
[329422107,1718329858009,-500.0,0.00024383,2]
[329422108,1718329858030,-500.0,0.00024383,2]
[329422109,1718329858051,-500.0,0.00024383,2]
[329422110,1718329858070,-500.0,0.00024383,2]
[329422111,1718329858096,-500.0,0.00024383,2]
[329422112,1718329858113,-500.0,0.00024383,2]
[329422113,1718329858134,-500.0,0.00024383,2]
[329422114,1718329858147,-706.84,0.00024383,2]
[329422115,1718329858191,-500.0,0.00024383,2]
[329422116,1718329858208,-738.38,0.00024383,2]
[329422117,1718329858240,-500.0,0.00024383,2]
[329422118,1718329858270,-500.0,0.00024383,2]
[329422119,1718329858284,-500.0,0.00024383,2]
[329422120,1718329858300,-500.0,0.00024383,2]
[329422121,1718329858338,-500.0,0.00024383,2]
[329422122,1718329858350,-500.0,0.00024383,2]
[329422123,1718329858362,-463.7279699,0.00024383,2]
[329422124,1718329858408,-538.7,0.00024383,2]
[329422125,1718329858430,-500.0,0.00024383,2]
[329422126,1718329858476,-734.23,0.00024383,2]
[329422127,1718329858488,-500.0,0.00024383,2]
[329422128,1718329858508,-811.75,0.00024383,2]
[329422129,1718329858527,-5232.61,0.00024383,2]
[329422130,1718329858544,-500.0,0.00024383,2]
[329422131,1718329858558,-500.0,0.00024383,2]
[329422132,1718329858571,-1315.57,0.00024383,2]
[329422133,1718329858583,-500.0,0.00024383,2]
[329422134,1718329858599,-500.0,0.00024383,2]
[329422135,1718329858610,-500.0,0.00024383,2]
[329422136,1718329858621,-500.0,0.00024383,2]
[329422137,1718329858645,-914.92,0.00024383,2]
[329422138,1718329858656,-500.0,0.00024383,2]
[329422139,1718329858681,-544.22223691,0.00024383,2]
[329422140,1718329858709,-500.0,0.00024383,2]
[329422141,1718329858721,-522.61,0.00024383,2]
[329422142,1718329858744,-738.07,0.00024383,2]
[329422143,1718329858760,-444.94849804,0.00024383,2]
[329422144,1718329858772,-595.89,0.00024383,2]
[329422145,1718329858782,-4346.24,0.00024383,2]
[329422146,1718329858796,-500.0,0.00024383,2]
[329422147,1718329858807,-500.0,0.00024383,2]
[329422148,1718329858826,-500.0,0.00024383,2]
[329422149,1718329858848,-500.0,0.00024383,2]
[329422150,1718329858858,-2017.22,0.00024383,2]
[329422151,1718329858881,-698.43,0.00024383,2]
[329422152,1718329858893,-500.0,0.00024383,2]
[329422153,1718329858906,-500.0,0.00024383,2]
[329422154,1718329858933,-690.02,0.00024383,2]
[329422155,1718329858948,-500.0,0.00024383,2]
[329422156,1718329858960,-500.0,0.00024383,2]
[329422157,1718329858971,-500.0,0.00024383,2]
[329422158,1718329858983,-500.0,0.00024383,2]
[329422159,1718329858998,-713.88,0.00024383,2]
[329422160,1718329859013,-551.07,0.00024383,2]
[329422161,1718329859031,-500.0,0.00024383,2]
[329422162,1718329859050,-794.24,0.00024383,2]
[329422163,1718329859067,-785.3,0.00024383,2]
[329422164,1718329859095,-1263.69,0.00024383,2]
[329422165,1718329859107,-1583.91,0.00024383,2]
[329422166,1718329859120,-562.87,0.00024383,2]
[329422167,1718329859140,-500.0,0.00024383,2]
[329422168,1718329859152,-500.0,0.00024383,2]
[329422169,1718329859166,-500.0,0.00024383,2]
[329422170,1718329859204,-500.0,0.00024383,2]
[329422171,1718329859221,-528.45,0.00024383,2]
[329422172,1718329859233,-967.72,0.00024383,2]
[329422173,1718329859244,-3644.52,0.00024383,2]
[329422174,1718329859255,-1028.38,0.00024383,2]
[329422175,1718329859265,-500.0,0.00024383,2]
[329422176,1718329859276,-744.0,0.00024383,2]
[329422177,1718329859287,-500.0,0.00024383,2]
[329422178,1718329859298,-500.0,0.00024383,2]
[329422179,1718329859310,-500.0,0.00024383,2]
[329422180,1718329859331,-500.0,0.00024383,2]
[329422181,1718329859340,-500.0,0.00024383,2]
[329422182,1718329859351,-519.3,0.00024383,2]
[329422183,1718329859363,-6885.52,0.00024383,2]
[329422184,1718329859373,-858.45,0.00024383,2]
[329422185,1718329859384,-3143.2,0.00024383,2]
[329422186,1718329859395,-1414.07,0.00024383,2]
[329422187,1718329859405,-544.69,0.00024383,2]
[329422188,1718329859421,-500.0,0.00024383,2]
[329422189,1718329859441,-500.0,0.00024383,2]
[329422190,1718329859452,-500.0,0.00024383,2]
[329422191,1718329859462,-19497.87,0.00024383,2]
[329422192,1718329859472,-500.0,0.00024383,2]
[329422193,1718329859482,-500.0,0.00024383,2]
[329422194,1718329859502,-500.0,0.00024383,2]
[329422195,1718329859515,-500.0,0.00024383,2]
[329422196,1718329859526,-3507.4,0.00024383,2]
[329422197,1718329859536,-1740.38,0.00024383,2]
[329422198,1718329859550,-500.0,0.00024383,2]
[329422199,1718329859568,-725.66,0.00024383,2]
[329422200,1718329859577,-710.82,0.00024383,2]
[329422201,1718329859589,-500.0,0.00024383,2]
[329422202,1718329859600,-500.0,0.00024383,2]
[329422203,1718329859610,-1247.89,0.00024383,2]
[329422204,1718329859624,-1459.88,0.00024383,2]
[329422205,1718329859636,-500.0,0.00024383,2]
[329422206,1718329859654,-1596.05,0.00024383,2]
[329422207,1718329859667,-500.0,0.00024383,2]
[329422208,1718329859680,-500.0,0.00024383,2]
[329422209,1718329859690,-567.967693,0.00024383,2]
[329422210,1718329859708,-763.24,0.00024383,2]
[329422211,1718329859722,-500.0,0.00024383,2]
[329422212,1718329859734,-500.0,0.00024383,2]
[329422213,1718329859752,-500.0,0.00024383,2]
[329422214,1718329859777,-500.0,0.00024383,2]
[329422215,1718329859795,-500.0,0.00024383,2]
[329422216,1718329859810,-500.0,0.00024383,2]
[329422217,1718329859822,-500.0,0.00024383,2]
[329422218,1718329859839,-923.18,0.00024383,2]
[329422219,1718329859858,-500.0,0.00024383,2]
[329422220,1718329859883,-500.0,0.00024383,2]
[329422221,1718329859921,-500.0,0.00024383,2]
[329422222,1718329859951,-500.0,0.00024383,2]
[329422223,1718329859965,-500.0,0.00024383,2]
[329422224,1718329859991,-2106.23,0.00024383,2]
[329422225,1718329860003,-500.0,0.00024383,2]
[329422226,1718329860017,-500.0,0.00024383,2]
[329422227,1718329860027,-504.54,0.00024383,2]
[329422228,1718329860040,-1539.25,0.00024383,2]
[329422229,1718329860058,-500.0,0.00024383,2]
[329422230,1718329860072,-516.49,0.00024383,2]
[329422231,1718329860087,-1036.84,0.00024383,2]
[329422232,1718329860103,-8388.73,0.00024383,2]
[329422233,1718329860129,-2997.79,0.00024383,2]
[329422234,1718329860139,-500.0,0.00024383,2]
[329422235,1718329860149,-1701.31,0.00024383,2]
[329422236,1718329860162,-500.0,0.00024383,2]
[329422237,1718329860176,-853.3,0.00024383,2]
[329422238,1718329860188,-6425.34,0.00024383,2]
[329422239,1718329860200,-713.37,0.00024383,2]
[329422240,1718329860226,-712.85,0.00024383,2]
[329422241,1718329860244,-500.0,0.00024383,2]
[329422242,1718329860258,-500.0,0.00024383,2]
[329422243,1718329860270,-1143.4,0.00024383,2]
[329422244,1718329860281,-500.0,0.00024383,2]
[329422245,1718329860297,-500.0,0.00024383,2]
[329422246,1718329860322,-200.0,0.00024383,2]
[329422247,1718329860336,-14213.73,0.00024383,2]
[329422248,1718329860347,-970.67,0.00024383,2]
[329422249,1718329860359,-500.0,0.00024383,2]
[329422250,1718329860371,-500.0,0.00024383,2]
[329422251,1718329860409,-500.0,0.00024383,2]
[329422252,1718329860428,-500.0,0.00024383,2]
[329422253,1718329860464,-508.77,0.00024383,2]
[329422254,1718329860480,-824.99,0.00024383,2]
[329422255,1718329860500,-772.8,0.00024383,2]
[329422256,1718329860560,-500.0,0.00024383,2]
[329422257,1718329860618,-1559.88,0.00024383,2]
[329422258,1718329860649,-18236.24,0.00024383,2]
[329422259,1718329860660,-500.0,0.00024383,2]
[329422260,1718329860671,-788.77,0.00024383,2]
[329422261,1718329860683,-814.94,0.00024383,2]
[329422262,1718329860698,-1138.87,0.00024383,2]
[329422263,1718329860714,-500.0,0.00024383,2]
[329422264,1718329860759,-535.62546825,0.00024383,2]
[329422265,1718329860786,-500.0,0.00024383,2]
[329422266,1718329860810,-500.0,0.00024383,2]
[329422267,1718329860833,-500.0,0.00024383,2]
[329422268,1718329860847,-3010.8,0.00024383,2]
[329422269,1718329860863,-500.0,0.00024383,2]
[329422270,1718329860886,-500.0,0.00024383,2]
[329422271,1718329860914,-1211.77,0.00024383,2]
[329422272,1718329860937,-954.02,0.00024383,2]
[329422273,1718329860955,-375.93867173,0.00024383,2]
[329422274,1718329860980,-2613.92,0.00024383,2]
[329422275,1718329861001,-500.0,0.00024383,2]
[329422276,1718329861082,-500.0,0.00024383,2]
[329422277,1718329861130,-1139.77,0.00024383,2]
[329422278,1718329861143,-1326.27,0.00024383,2]
[329422279,1718329861159,-500.0,0.00024383,2]
[329422280,1718329861179,-1034.21,0.00024383,2]
[329422281,1718329861191,-1703.47,0.00024383,2]
[329422282,1718329861215,-750.83,0.00024383,2]
[329422283,1718329861230,-737.6,0.00024383,2]
[329422284,1718329861245,-500.0,0.00024383,2]
[329422285,1718329861277,-500.0,0.00024383,2]
[329422286,1718329861288,-1284.33,0.00024383,2]
[329422287,1718329861299,-2561.07,0.00024383,2]
[329422288,1718329861323,-500.0,0.00024383,2]
[329422289,1718329861348,-1306.03,0.00024383,2]
[329422290,1718329861369,-500.0,0.00024383,2]
[329422291,1718329861408,-500.0,0.00024383,2]
[329422292,1718329861432,-663.01,0.00024383,2]
[329422293,1718329861454,-500.0,0.00024383,2]
[329422294,1718329861470,-2161.7,0.00024383,2]
[329422295,1718329861481,-500.0,0.00024383,2]
[329422296,1718329861504,-500.0,0.00024383,2]
[329422297,1718329861520,-500.0,0.00024383,2]
[329422298,1718329861536,-4069.95,0.00024383,2]
[329422299,1718329861553,-1384.56,0.00024383,2]
[329422300,1718329861582,-1695.26,0.00024383,2]
[329422301,1718329861603,-500.0,0.00024383,2]
[329422302,1718329861618,-682.29,0.00024383,2]
[329422303,1718329861650,-500.0,0.00024383,2]
[329422304,1718329861684,-8569.36,0.00024383,2]
[329422305,1718329861714,-1116.19,0.00024383,2]
[329422306,1718329861735,-500.0,0.00024383,2]
[329422307,1718329861756,-483.78054296,0.00024383,2]
[329422308,1718329861787,-500.0,0.00024383,2]
[329422309,1718329861799,-518.86,0.00024383,2]
[329422310,1718329861821,-669.39,0.00024383,2]
[329422311,1718329861836,-661.47,0.00024383,2]
[329422312,1718329861846,-500.0,0.00024383,2]
[329422313,1718329861865,-1788.93,0.00024383,2]
[329422314,1718329861883,-2545.55,0.00024383,2]
[329422315,1718329861893,-1814.53,0.00024383,2]
[329422316,1718329861904,-691.74,0.00024383,2]
[329422317,1718329861931,-500.0,0.00024383,2]
[329422318,1718329861943,-500.0,0.00024383,2]
[329422319,1718329861956,-500.0,0.00024383,2]
[329422320,1718329861969,-2594.63,0.00024383,2]
[329422321,1718329861986,-509.61,0.00024383,2]
[329422322,1718329861997,-754.17,0.00024383,2]
[329422323,1718329862009,-500.0,0.00024383,2]
[329422324,1718329862038,-500.0,0.00024383,2]
[329422325,1718329862048,-2889.87,0.00024383,2]
[329422326,1718329862059,-527.54,0.00024383,2]
[329422327,1718329862070,-8645.55,0.00024383,2]
[329422328,1718329862084,-500.0,0.00024383,2]
[329422329,1718329862117,-1424.48,0.00024383,2]
[329422330,1718329862142,-1548.18,0.00024383,2]
[329422331,1718329862154,-1670.07,0.00024383,2]
[329422332,1718329862187,-1790.01,0.00024383,2]
[329422333,1718329862215,-500.0,0.00024383,2]
[329422334,1718329862226,-2617.75,0.00024383,2]
[329422335,1718329862237,-500.0,0.00024383,2]
[329422336,1718329862247,-2824.15,0.00024383,2]
[329422337,1718329862257,-500.0,0.00024383,2]
[329422338,1718329862268,-398.01319048,0.00024383,2]
[329422339,1718329862278,-863.29,0.00024383,2]
[329422340,1718329862303,-1525.09,0.00024383,2]
[329422341,1718329862325,-1816.42,0.00024383,2]
[329422342,1718329862375,-500.0,0.00024383,2]
[329422343,1718329862394,-500.0,0.00024383,2]
[329422344,1718329862411,-500.0,0.00024383,2]
[329422345,1718329862433,-859.93,0.00024383,2]
[329422346,1718329862443,-500.0,0.00024383,2]
[329422347,1718329862469,-500.0,0.00024383,2]
[329422348,1718329862492,-500.0,0.00024383,2]
[329422349,1718329862503,-954.74,0.00024383,2]
[329422350,1718329862520,-500.0,0.00024383,2]
[329422351,1718329862543,-952.86,0.00024383,2]
[329422352,1718329862576,-340.21429534,0.00024383,2]
[329422353,1718329862590,-708.98618554,0.00024383,2]
[329422354,1718329862607,-17926.3515071,0.00024383,2]